Cogmind - Beta 11 @@@ ROGUE MODE // 2022.04.01 @ 16:44:19 Player: Alexbot Result: Destroyed by S-27 Virus with Autogun Performance ------------- Evolutions (4) 2000 Regions Visited (16) 3200 Robots Destroyed (174) 870 Value Destroyed (6888) 6888 Prototype IDs (34) 680 Alien Tech Used (0) 0 Bonus (4410) 4410 TOTAL SCORE: 18048 Bonus ------- High Alert Combat Kills 665 Follower Combat Kills 145 Entered Garrisons 800 Used RIF Installer 2000 Entered DSFs 500 Aligned with FarCom 300 Cogmind --------- Core Integrity 0/850 Matter 43/300 Energy 185/450 System Corruption 28% Temperature Cool (0) Movement Core (300) Ox5 Location -6/DSF Parts ------- > --- POWER (1) -------- (None) > --- PROPULSION (3) --- Light Treads > --- UTILITY (9) ------ Energy Well Hacking Suite Hacking Suite Relay Coupler [Sentry] (8) Relay Coupler [Hunter] (7) > --- WEAPON (2) ------- Heavy Plasma Cannon Power Maul > --- INVENTORY (5) ---- Authchip [R/Combat] Plasma Rifle Proton Cannon Proton Cannon Proton Cannon Peak State ------------ > --- POWER ------------ Light Angular Momentum Engine > --- PROPULSION ------- Carbon-fiber Leg Flexi-carbon Leg Flexi-carbon Leg > --- UTILITY ---------- Huge Storage Unit Improved Light Armor Plating Hacking Suite Hacking Suite Authchip [R/NC] Relay Coupler [NC] Relay Coupler [ARC] Relay Coupler [Sentry] Relay Coupler [Hunter] > --- WEAPON ----------- Heavy Gauss Cannon Improved Remote Datajack > --- INVENTORY -------- Hybrid Fission Core Wheel Experimental Sensor Array Advanced Terrain Scan Processor Weapon Cycler Improved Light Armor Plating Authchip [R/Combat] Authchip [R/Combat] Authchip [R/Combat] Authchip [R/Combat] Authchip [R/Combat] Authchip [R/Combat] Authchip [R/Combat] Authchip [R/Combat] Relay Coupler [Swarmer] Relay Coupler [Sentry] Relay Coupler [Demolisher] Recalibrator AWS/Gauss Heavy Gauss Cannon Improved Proton Missile Launcher Improved Proton Missile Launcher Falx [Rating: 71] Favorites ----------- Power Light Nuclear Core Engine Light Ion Engine Power Core Light Nuclear Core Propulsion Armored Wheel Treads Medium Treads Leg Carbon-fiber Leg Wheel Armored Wheel Utility Hacking Suite Device Improved Trap Extractor Storage Huge Storage Unit Processor Visual Processing Unit Hackware Hacking Suite Protection Improved Light Armor Plating Weapon Heavy Gauss Cannon Energy Gun EM Pulse Gun Energy Cannon Improved EM Pulse Cannon Ballistic Gun Enhanced Autogun Ballistic Cannon Heavy Gauss Cannon Launcher Mini Grenade Launcher Special Weapon Improved Remote Datajack Impact Weapon Power Maul Slashing Weapon Katana Build | -11 -10 -10 -10 -9 -8 -8 -8 -8 -7 -7 -7 -7 -6 -6 -6 -6 ------- Run | Scr Mat Min Exi Min Mat Gar Mat Gar Fac Gar Fac Gar Fac Was Fac DSF Slots Evolved 8 | . . . . . 4 . . . 2 . . . 2 . . . Power . | . . . . . . . . . . . . . . . . . Propulsion 1 | . . . . . . . . . 1 . . . . . . . Utility 7 | . . . . . 4 . . . 1 . . . 2 . . . Weapon . | . . . . . . . . . . . . . . . . . Parts Attached 216 | . 6 2 . . 20 5 14 19 21 19 17 5 69 2 5 12 Power 15 | . . . . . 1 1 1 1 2 1 3 . 4 . 1 . Engine 6 | . . . . . . 1 . . 1 . . . 3 . 1 . Core 9 | . . . . . 1 . 1 1 1 1 3 . 1 . . . Reactor . | . . . . . . . . . . . . . . . . . Propulsion 49 | . 4 . . . 1 1 4 4 4 8 3 . 16 1 . 3 Treads 13 | . . . . . . . 2 3 . . 1 . 6 . . 1 Leg 9 | . . . . . . . . . . 3 . . 4 . . 2 Wheel 27 | . 4 . . . 1 1 2 1 4 5 2 . 6 1 . . Hover . | . . . . . . . . . . . . . . . . . Flight . | . . . . . . . . . . . . . . . . . Utility 51 | . 2 . . . 6 1 1 3 9 3 3 2 17 1 2 1 Device 14 | . . . . . 4 . . 1 2 1 1 . 3 1 1 . Storage 2 | . 1 . . . . . . . . . . . . . . 1 Processor 7 | . 1 . . . 1 . . . 4 . . . . . 1 . Hackware 11 | . . . . . . . . . 1 1 . 1 8 . . . Protection 17 | . . . . . 1 1 1 2 2 1 2 1 6 . . . Artifact . | . . . . . . . . . . . . . . . . . Weapon 101 | . . 2 . . 12 2 8 11 6 7 8 3 32 . 2 8 Energy Gun 14 | . . 1 . . 6 1 . . 1 . . . 3 . . 2 Energy Cannon 4 | . . . . . . . . . 1 . . . . . . 3 Ballistic Gun 24 | . . . . . 2 . 5 6 2 3 3 . 3 . . . Ballistic Cannon 17 | . . . . . . . . . . 1 1 2 10 . 1 2 Launcher 17 | . . 1 . . 4 1 1 2 . 1 3 . 4 . . . Special Weapon 5 | . . . . . . . . . . . . 1 4 . . . Impact Weapon 3 | . . . . . . . . . . . . . 1 . 1 1 Slashing Weapon 17 | . . . . . . . 2 3 2 2 1 . 7 . . . Piercing Weapon . | . . . . . . . . . . . . . . . . . Special Melee Weapon . | . . . . . . . . . . . . . . . . . Unidentified Prototypes 8 | . . . . . 3 . . . 1 . 2 . 2 . . . Corrupted Parts 2 | . . . . . . . . . . . 1 . . . . 1 System Corruption 13 | . . . . . . . . . . . 2 . . . . 11 Parts Lost 70 | . . . . . 4 3 7 5 8 7 5 1 16 4 . 10 Power 11 | . . . . . 1 1 2 1 2 . 1 . 2 . . 1 Propulsion 22 | . . . . . 1 . 1 2 3 2 2 1 6 1 . 3 Utility 25 | . . . . . 1 1 3 1 2 3 1 . 7 3 . 3 Weapon 12 | . . . . . 1 1 1 1 1 2 1 . 1 . . 3 Highest Loss Streak 8 | . . . . . 2 1 2 2 4 6 3 1 8 4 . 8 To Critical Strikes 1 | . . . . . . . . . . . 1 . . . . . Average Slot Usage (%) 88 | . 92 100 100 100 76 100 92 68 84 76 97 94 93 70 68 52 Engine 3 | . 14 14 14 14 6 6 2 . 1 . . . 2 3 4 1 Core 3 | . . . . . 1 2 5 2 3 3 7 7 3 . . . Treads 4 | . . . . . . . 4 9 1 . . 7 10 . . 2 Leg 1 | . 1 . . . . . . . . 6 . . 3 . . 3 Wheel 12 | . 26 28 28 28 16 18 13 6 11 10 22 13 4 15 13 1 Device 6 | . . . . . 9 18 15 1 9 7 9 7 4 2 4 2 Storage 7 | . 14 14 14 14 9 9 9 9 7 7 7 7 6 3 . . Processor 9 | . 6 14 14 14 16 18 18 18 24 18 6 . . . 4 . Hackware 15 | . . . . . . . . . 1 9 15 20 37 36 33 27 Protection 5 | . . . . . . 9 6 7 8 1 11 13 5 . . . Energy Gun 4 | . 28 26 28 28 14 7 . . 2 . . . . 3 . 3 Ballistic Gun 3 | . . . . . 3 9 14 8 4 3 1 . . . . . Ballistic Cannon 2 | . . . . . . . . . . 1 6 5 6 . 3 2 Slashing Weapon 2 | . . . . . . . 1 4 4 4 3 2 2 . . . Naked Turns . | . . . . . . . . . . . . . . . . . Heaviest Build 123 | 11 86 86 86 86 102 104 98 95 98 98 111 111 123 93 21 28 Greatest Support 86 | 20 24 24 24 24 24 24 40 40 48 36 36 24 86 42 26 26 Greatest Overweight (x) 30 | . 4 3 3 3 7 4 4 7 30 29 4 9 11 3 . 4 Average Overweight (x) 3 | . 3 3 3 3 3 3 3 5 4 2 2 4 5 . . . Largest Inventory Capacity 25 | . 25 25 25 25 25 25 25 25 25 25 25 25 25 25 5 5 Average Capacity 24 | . 23 25 25 25 25 25 25 25 25 25 25 25 25 14 5 5 Most Carried 25 | . 8 8 12 11 25 24 25 25 25 25 25 25 25 25 5 5 Average Carried 21 | . 7 8 9 10 18 23 24 23 24 24 24 24 24 14 2 4 Final Capacity 25 | 8 25 25 25 25 25 25 25 25 25 25 25 25 25 5 5 5 Final Carried 25 | 6 8 8 10 11 24 23 24 25 25 25 25 25 25 5 2 5 Class Distribution -------------------- 49% | Bothacker-Mutant 37% | Mutant 8% | Botlord-Mutant 4% | Hacker-Mutant Dominant Class ---------------- Mutant | -10/Materials Mutant | -10/Mines Mutant | -10/Exiles Mutant | -9/Mines Mutant | -8/Materials Mutant | -8/Garrison Mutant | -8/Materials Mutant | -8/Garrison Bothacker-Mutant | -7/Factory Bothacker-Mutant | -7/Garrison Bothacker-Mutant | -7/Factory Bothacker-Mutant | -7/Garrison Bothacker-Mutant | -6/Factory Hacker-Mutant | -6/Waste Hacker-Mutant | -6/Factory Hacker-Mutant | -6/DSF Resources | -11 -10 -10 -10 -9 -8 -8 -8 -8 -7 -7 -7 -7 -6 -6 -6 -6 ----------- Run | Scr Mat Min Exi Min Mat Gar Mat Gar Fac Gar Fac Gar Fac Was Fac DSF Matter Collected 4769 | 178 . 38 . 51 420 191 629 362 422 319 458 286 1218 . . 197 Remotely 864 | . . . . . 234 191 439 . . . . . . . . . Salvage Created 6331 | . . 38 . . 1009 428 684 414 556 702 734 157 1402 . . 207 Parts 367 | . . 4 . . 57 31 43 33 32 26 42 4 86 . . 9 Haulers Intercepted 5 | . . . . . 3 . . . 1 . 1 . . . . . Recyclers Shooed . | . . . . . . . . . . . . . . . . . Parts Field Recycled . | . . . . . . . . . . . . . . . . . Retrieved Matter . | . . . . . . . . . . . . . . . . . Parts Self-Destructed . | . . . . . . . . . . . . . . . . . Prevented . | . . . . . . . . . . . . . . . . . Kills | -11 -10 -10 -10 -9 -8 -8 -8 -8 -7 -7 -7 -7 -6 -6 -6 -6 ------- Run | Scr Mat Min Exi Min Mat Gar Mat Gar Fac Gar Fac Gar Fac Was Fac DSF Combat Hostiles Destroyed 134 | . . 2 . . 17 13 14 14 9 15 14 4 25 . . 7 Melee 12 | . . . . . . . . 1 4 . 1 . 5 . . 1 Guns 50 | . . . . . 8 5 13 7 5 9 2 . 1 . . . Cannons 26 | . . . . . . . . . . . 7 4 11 . . 4 AOE 45 | . . 2 . . 9 8 1 6 . 6 4 . 8 . . 1 Classes Destroyed 17 | . . 1 . . 9 . 1 1 1 . 1 . 3 . . . Worker 10 | . . . . . 2 . 2 . 2 . 2 . 2 . . . Builder 9 | . . . . . 2 . . . . . 1 . 6 . . . Tunneler 3 | . . . . . . . 1 . . . 1 . 1 . . . Hauler 5 | . . . . . 3 . . . 1 . 1 . . . . . Recycler 8 | . . . . . 2 . . . 2 . . . 4 . . . Mechanic 1 | . . . . . . . . . . . . . 1 . . . Operator 2 | . . . . . 1 . . . 1 . . . . . . . Watcher 2 | . . . . . 1 . . . . . 1 . . . . . Swarmer 39 | . . . . . 7 4 3 4 3 7 3 . 7 . . 1 Grunt 43 | . . 2 . . 6 5 4 6 3 8 3 1 5 . . . Brawler 2 | . . . . . . . . . . . 1 1 . . . . Duelist 5 | . . . . . . . . 3 . . . 1 1 . . . Sentry 19 | . . . . . 3 4 5 1 . . 4 1 . . . 1 Specialist 5 | . . . . . . . . . . . . . 2 . . 3 Hunter 7 | . . . . . 1 . 2 . . . . . 3 . . 1 Programmer 12 | . . . . . . . . . 3 . 3 . 6 . . . Heavy 2 | . . . . . . . . . . . . . 1 . . 1 Best Kill Streak 13 | . . 2 . . 9 8 4 5 5 13 4 2 8 . . 4 Combat Bots Only 13 | . . 2 . . 5 8 3 5 3 13 3 2 4 . . 4 Max Kills in Single Turn 5 | . . 1 . . 3 4 2 3 1 2 2 1 5 . . 1 Gunslinging 1 | . . . . . 1 . . . . . . . . . . . Exploded 4 | . . 1 . . 3 4 1 3 . 2 2 . 2 . . 1 Melee 1 | . . . . . . . . 1 1 . 1 . 1 . . 1 Uniques/NPCs Destroyed . | . . . . . . . . . . . . . . . . . Combat | -11 -10 -10 -10 -9 -8 -8 -8 -8 -7 -7 -7 -7 -6 -6 -6 -6 -------- Run | Scr Mat Min Exi Min Mat Gar Mat Gar Fac Gar Fac Gar Fac Was Fac DSF Damage Taken 11081 | . . 134 . . 582 400 1097 1055 1009 905 857 384 3332 93 . 1233 Core 2010 | . . 39 . . 77 44 190 192 161 334 102 10 506 . . 355 Absorbed by Shields . | . . . . . . . . . . . . . . . . . Redirected to Shielding 61 | . . . . . . . . . 28 . 33 . . . . . Regen/Repaired (Parts) 251 | . . . . . . . . . . . . . 251 . . . Core Remaining (%) 51 | 100 . . . 84 . . . 8 . . . 13 . . . . Volleys Fired 388 | . . 8 . . 49 22 77 24 25 19 31 32 74 . . 27 Largest 2 | . . 2 . . 2 2 2 2 2 2 1 2 2 . . 2 Hottest 122 | . . 80 . . 90 75 50 50 55 108 53 106 122 . . 114 Shots Fired 652 | . . 10 . . 93 37 138 47 65 50 44 33 96 . . 39 Gun 435 | . . 4 . . 88 30 136 38 65 41 12 . 17 . . 4 Cannon 126 | . . . . . . . . . . 1 22 12 56 . . 35 Launcher 58 | . . 6 . . 5 7 2 9 . 8 10 . 11 . . . Special 33 | . . . . . . . . . . . . 21 12 . . . Kinetic 467 | . . . . . 23 15 136 38 63 41 34 12 70 . . 35 Thermal 25 | . . 2 . . 19 . . . 2 . . . 2 . . . Explosive 42 | . . 6 . . 5 7 2 9 . 8 . . 5 . . . Electromagnetic 85 | . . 2 . . 46 15 . . . 1 10 . 7 . . 4 Robot Hit Streak 23 | . . 6 . . 23 8 9 9 11 15 9 6 17 . . 10 Robot Miss Streak 6 | . . 2 . . 4 3 4 2 4 3 3 3 4 . . 6 Penetration Max . | . . . . . . . . . . . . . . . . . Secondary Targets 4 | . . . . . 1 1 1 1 . . . . . . . . Max Gunslinging Chain 1 | . . . . . 1 1 1 1 . . . . . . . . Autonomous 86 | . . . . . . . . 8 20 30 12 . 16 . . . Shots Hit Robots 487 | . . 6 . . 57 27 93 31 55 54 29 22 74 . . 39 Core Hits 294 | . . 5 . . 45 25 33 22 19 32 31 4 48 . . 30 Critical Kills 1 | . . . . . . . 1 . . . . . . . . . Critical Parts Destroyed 3 | . . . . . . . 1 . . . . . 1 . . 1 Critical Strikes 17 | . . . . . . . 2 1 . 2 2 1 8 . . 1 Destroy 3 | . . . . . . . 2 . . . . . 1 . . . Blast 8 | . . . . . . . . . . . 2 1 5 . . . Smash 1 | . . . . . . . . . . . . . . . . 1 Sever 5 | . . . . . . . . 1 . 2 . . 2 . . . Melee Attacks 97 | . . . . . . . 1 10 19 19 12 1 28 . . 7 Impact 8 | . . . . . . . . . . . . . 1 . . 7 Slashing 89 | . . . . . . . 1 10 19 19 12 1 27 . . . Piercing . | . . . . . . . . . . . . . . . . . Sneak Attacks 13 | . . . . . . . . . 6 1 1 . 5 . . . Combat Hostiles 1 | . . . . . . . . . . . . . 1 . . . Follow-up Attacks . | . . . . . . . . . . . . . . . . . Damage Inflicted 17738 | . . 238 . . 1733 1073 1628 1175 1847 2709 1645 298 4371 . . 1021 Guns 5975 | . . 25 . . 987 411 1545 545 969 871 150 . 447 . . 25 Cannons 2977 | . . . . . . . . . . . 593 298 1289 . . 797 Explosions 6199 | . . 213 . . 721 662 83 535 249 942 806 . 1913 . . 75 Melee 2562 | . . . . . . . . 95 629 896 96 . 722 . . 124 Ramming 25 | . . . . . 25 . . . . . . . . . . . Kinetic 7945 | . . . . . 254 206 1545 545 969 871 743 298 1717 . . 797 Thermal 1847 | . . 10 . . 323 53 . . 249 . . . 1137 . . 75 Explosive 3700 | . . 213 . . 493 609 83 535 . 942 366 . 459 . . . Electromagnetic 1659 | . . 15 . . 638 205 . . . . 440 . 336 . . 25 Impact 124 | . . . . . . . . . . . . . . . . 124 Slashing 2438 | . . . . . . . . 95 629 896 96 . 722 . . . Piercing . | . . . . . . . . . . . . . . . . . Highest Corruption 28 | . . . . . 2 2 2 2 4 4 6 6 4 17 17 28 Average Corruption 4 | . . . . . 2 2 2 2 3 4 4 6 2 9 17 27 Corruption Purged . | . . . . . . . . . . . . . . . . . Corruption Blocked 9 | . . . . . . . . . 1 . 8 . . . . . Effects 159 | . . . . . 11 5 11 6 16 6 26 15 37 8 1 17 Message Errors 37 | . . . . . 2 . 1 2 2 3 6 4 13 . 1 3 Matter Fused 44 | . . . . . 2 2 5 2 3 2 12 3 7 1 . 5 Heat Flow Errors 14 | . . . . . 1 2 . . . . 2 5 1 . . 3 Energy Discharges 24 | . . . . . 2 1 4 1 3 . 1 2 8 1 . 1 Parts Rejected 5 | . . . . . . . . . 1 . . 1 2 1 . . Data Loss (minor) 18 | . . . . . 2 . . . 4 1 2 . 4 3 . 2 Data Loss (major) 4 | . . . . . . . . . 1 . 1 . . 1 . 1 Misfires 6 | . . . . . 1 . . 1 1 . 1 . 2 . . . Alerts 1 | . . . . . . . . . . . 1 . . . . . Misdirections 1 | . . . . . . . . . . . . . . 1 . . Weapon Failures 5 | . . . . . 1 . 1 . 1 . . . . . . 2 Overload Shots . | . . . . . . . . . . . . . . . . . Overflow Damage 791 | . . 3 . . 33 39 . . 56 204 20 13 359 . . 64 Projectiles 33 | . . . . . . . . . . . . 13 20 . . . Explosions 443 | . . 3 . . 33 39 . . 30 50 20 . 268 . . . Melee 315 | . . . . . . . . . 26 154 . . 71 . . 64 Knockbacks 16 | . . . . . . . . . . . 1 2 11 . . 2 Impact 2 | . . . . . . . . . . . . . . . . 2 Kinetic 14 | . . . . . . . . . . . 1 2 11 . . . Secondary . | . . . . . . . . . . . . . . . . . Self-Inflicted Damage 942 | . . 40 . . 59 51 48 121 132 108 11 . 372 . . . Shots 23 | . . 1 . . 1 1 1 3 2 2 1 . 11 . . . Rammed 1 | . . . . . 1 . . . . . . . . . . . Targets Rammed 1 | . . . . . 1 . . . . . . . . . . . Kicked . | . . . . . . . . . . . . . . . . . Crushed . | . . . . . . . . . . . . . . . . . Highest Temperature 267 | . . 54 . . 123 122 4 33 14 18 254 267 208 . . 243 Average Temperature 51 | . . 21 . . 19 29 2 10 14 11 47 76 80 . . 44 Received Heat Transfer 2358 | . . 72 . . 216 207 360 288 27 360 186 39 573 . . 30 Effects 1 | . . . . . . . . . . . . . 1 . . . Energy Bleed 1 | . . . . . . . . . . . . . 1 . . . Siege Activations . | . . . . . . . . . . . . . . . . . Robots Corrupted . | . . . . . . . . . . . . . . . . . Combat Hostiles . | . . . . . . . . . . . . . . . . . Parts Fried 3 | . . . . . 1 . . . . . 1 . . . . 1 Impact Corruptions 3 | . . . . . 1 . . . . . . . . . . 2 Robots Melted . | . . . . . . . . . . . . . . . . . Combat Hostiles . | . . . . . . . . . . . . . . . . . Parts Melted . | . . . . . . . . . . . . . . . . . Heat Transferred 1549 | . . 25 . . 400 24 . . 200 . . . 850 . . 50 Parts Sabotaged . | . . . . . . . . . . . . . . . . . Parts Stolen . | . . . . . . . . . . . . . . . . . Parts Stripped . | . . . . . . . . . . . . . . . . . Power Chain Reactions 7 | . . . . . 4 1 . . . . 1 . . . . 1 Missiles Intercepted . | . . . . . . . . . . . . . . . . . Alert | -11 -10 -10 -10 -9 -8 -8 -8 -8 -7 -7 -7 -7 -6 -6 -6 -6 ------- Run | Scr Mat Min Exi Min Mat Gar Mat Gar Fac Gar Fac Gar Fac Was Fac DSF Peak Influence 765 | . 15 127 . . 525 765 547 645 537 555 675 682 707 240 150 182 Initial 453 | . . 5 . . . 243 367 288 338 229 291 453 357 240 150 105 Average 376 | . 3 102 . . 318 455 436 512 423 456 488 597 335 217 150 146 Maximum Alert Level 3 | . . . . . 2 3 2 2 2 2 2 2 3 1 . . Low Security (%) 18 | . 100 100 . 100 16 . . . . . . . 24 . 100 100 Level 1 36 | . . . . . 55 60 38 28 44 30 31 . 44 100 . . Level 2 42 | . . . . . 27 10 61 71 55 69 68 100 28 . . . Level 3 1 | . . . . . . 29 . . . . . . 2 . . . Level 4 . | . . . . . . . . . . . . . . . . . Level 5 . | . . . . . . . . . . . . . . . . . High Security . | . . . . . . . . . . . . . . . . . Max Security . | . . . . . . . . . . . . . . . . . Squads Dispatched 27 | . . . . . 1 . 3 . 3 . 3 . 15 . . 2 Investigation 1 | . . . . . . . . . . . . . 1 . . . Extermination 8 | . . . . . . . . . 1 . 1 . 6 . . . Reinforcement 12 | . . . . . 1 . . . 2 . 2 . 5 . . 2 Assault 3 | . . . . . . . . . . . . . 3 . . . Garrison 3 | . . . . . . . 3 . . . . . . . . . Intercept . | . . . . . . . . . . . . . . . . . Searches Triggered . | . . . . . . . . . . . . . . . . . Construction Impeded 1 | . . . . . . . . . . . 1 . . . . . Haulers Reinforced . | . . . . . . . . . . . . . . . . . Active Scanning Responses . | . . . . . . . . . . . . . . . . . Cargo Convoy Interrupts . | . . . . . . . . . . . . . . . . . Stealth | -11 -10 -10 -10 -9 -8 -8 -8 -8 -7 -7 -7 -7 -6 -6 -6 -6 --------- Run | Scr Mat Min Exi Min Mat Gar Mat Gar Fac Gar Fac Gar Fac Was Fac DSF Distress Signals 8 | . . . . . 2 . 3 . 2 . . . 1 . . . Communications Jammed . | . . . . . . . . . . . . . . . . . Distress Signals . | . . . . . . . . . . . . . . . . . Times Spotted 224 | . 2 2 . . 27 15 26 15 19 18 21 16 44 6 . 13 Peak Tracking Total 10 | . 3 2 . . 6 6 4 4 6 10 4 6 6 6 . 7 Tactical Retreats 10 | . . . . . 1 2 1 1 1 2 1 . 1 . . . Traps | -11 -10 -10 -10 -9 -8 -8 -8 -8 -7 -7 -7 -7 -6 -6 -6 -6 ------- Run | Scr Mat Min Exi Min Mat Gar Mat Gar Fac Gar Fac Gar Fac Was Fac DSF Traps Triggered 16 | . . . . . 1 1 1 2 1 1 1 2 6 . . . Indirectly . | . . . . . . . . . . . . . . . . . Trap Hack Attempts . | . . . . . . . . . . . . . . . . . Triggered . | . . . . . . . . . . . . . . . . . Disarmed . | . . . . . . . . . . . . . . . . . Reprogrammed . | . . . . . . . . . . . . . . . . . Reused . | . . . . . . . . . . . . . . . . . Traps Extracted . | . . . . . . . . . . . . . . . . . Installed . | . . . . . . . . . . . . . . . . . Triggered . | . . . . . . . . . . . . . . . . . Machines | -11 -10 -10 -10 -9 -8 -8 -8 -8 -7 -7 -7 -7 -6 -6 -6 -6 ---------- Run | Scr Mat Min Exi Min Mat Gar Mat Gar Fac Gar Fac Gar Fac Was Fac DSF Machines Disabled 42 | . . . . . 3 1 . 1 2 . 13 1 21 . . . Max in Single Turn 9 | . . . . . 1 1 . 1 2 . 2 1 9 . . . Garrison Relay 3 | . . . . . . 1 . 1 . . . 1 . . . . Machines Sabotaged . | . . . . . . . . . . . . . . . . . Garrisons Compromised . | . . . . . . . . . . . . . . . . . Overloaded Fab Kills . | . . . . . . . . . . . . . . . . . Hacking | -11 -10 -10 -10 -9 -8 -8 -8 -8 -7 -7 -7 -7 -6 -6 -6 -6 --------- Run | Scr Mat Min Exi Min Mat Gar Mat Gar Fac Gar Fac Gar Fac Was Fac DSF Machines Accessed 27 | . 1 . 2 . 7 . 4 . 3 . 4 . 5 . 1 . Terminals 16 | . 1 . . . 6 . 2 . 2 . 2 . 2 . 1 . Fabricators 4 | . . . . . . . . . . . 1 . 3 . . . Repair Stations 1 | . . . . . . . 1 . . . . . . . . . Recycling Units . | . . . . . . . . . . . . . . . . . Scanalyzers . | . . . . . . . . . . . . . . . . . Garrison Access 4 | . . . . . 1 . 1 . 1 . 1 . . . . . Total Hacks 59 | . 3 . 2 . 16 . 8 . 6 . 6 . 17 . 1 . Successful 30 | . 2 . 2 . 7 . 4 . 2 . 4 . 8 . 1 . Failed 29 | . 1 . . . 9 . 4 . 4 . 2 . 9 . . . Catastrophic 1 | . 1 . . . . . . . . . . . . . . . Database Lockouts . | . . . . . . . . . . . . . . . . . Manual 17 | . . . 1 . 2 . 1 . . . 2 . 11 . . . Terminals 43 | . 3 . . . 15 . 5 . 5 . 4 . 10 . 1 . Fabricators 8 | . . . . . . . . . . . 1 . 7 . . . Repair Stations 2 | . . . . . . . 2 . . . . . . . . . Recycling Units . | . . . . . . . . . . . . . . . . . Scanalyzers . | . . . . . . . . . . . . . . . . . Garrison Access 4 | . . . . . 1 . 1 . 1 . 1 . . . . . Terminal Hacks 15 | . 2 . 2 . 5 . 2 . 1 . . . 2 . 1 . Record 1 | . . . 1 . . . . . . . . . . . . . Robot Analysis 1 | . 1 . . . . . . . . . . . . . . . Prototype ID Bank 1 | . . . . . . . . . 1 . . . . . . . Open DSF 1 | . . . . . . . . . . . . . . . 1 . Branch Access Points 4 | . 1 . . . 1 . 1 . . . . . 1 . . . Fabricator Index 1 | . . . . . . . . . . . . . 1 . . . Scanalyzer Index 1 | . . . . . 1 . . . . . . . . . . . Locate Traps 2 | . . . . . 1 . 1 . . . . . . . . . Hauler Manifests 1 | . . . . . 1 . . . . . . . . . . . Zone Layout 1 | . . . . . 1 . . . . . . . . . . . EX-Prototype ID Bank 1 | . . . 1 . . . . . . . . . . . . . Fabricator Hacks 6 | . . . . . . . . . . . 1 . 5 . . . Network Status 5 | . . . . . . . . . . . 1 . 4 . . . Build 1 | . . . . . . . . . . . . . 1 . . . Repair Station Hacks 1 | . . . . . . . 1 . . . . . . . . . Scan Component 1 | . . . . . . . 1 . . . . . . . . . Recycling Unit Hacks . | . . . . . . . . . . . . . . . . . Scanalyzer . | . . . . . . . . . . . . . . . . . Garrison Access Hacks 4 | . . . . . 1 . 1 . 1 . 1 . . . . . Unlock Access 4 | . . . . . 1 . 1 . 1 . 1 . . . . . Unauthorized Hacks 4 | . . . . . 1 . . . . . 2 . 1 . . . Terminals 3 | . . . . . 1 . . . . . 2 . . . . . Assimilate 2 | . . . . . . . . . . . 2 . . . . . Botnet 1 | . . . . . 1 . . . . . . . . . . . Fabricators 1 | . . . . . . . . . . . . . 1 . . . Report 1 | . . . . . . . . . . . . . 1 . . . Repair Stations . | . . . . . . . . . . . . . . . . . Recycling Units . | . . . . . . . . . . . . . . . . . Scanalyzers . | . . . . . . . . . . . . . . . . . Garrison Access . | . . . . . . . . . . . . . . . . . Data Cores Recovered 1 | . . . . . 1 . . . . . . . . . . . Used . | . . . . . . . . . . . . . . . . . Hacking Detections 17 | . 1 . . . 5 . 3 . 2 . 2 . 4 . . . Full Trace Events 2 | . 1 . . . . . . . . . . . 1 . . . Feedback Events . | . . . . . . . . . . . . . . . . . Feedback Blocked . | . . . . . . . . . . . . . . . . . Robot Schematics Acquired . | . . . . . . . . . . . . . . . . . Robots Built . | . . . . . . . . . . . . . . . . . Authchips . | . . . . . . . . . . . . . . . . . Time . | . . . . . . . . . . . . . . . . . Total Robot Build Rating . | . . . . . . . . . . . . . . . . . Part Schematics Acquired . | . . . . . . . . . . . . . . . . . Parts Built 2 | . . . . . . . . . . . . . 2 . . . Authchips . | . . . . . . . . . . . . . . . . . Time 117 | . . . . . . . . . . . . . 117 . . . Total Part Build Rating 14 | . . . . . . . . . . . . . 14 . . . Parts Repaired . | . . . . . . . . . . . . . . . . . Time . | . . . . . . . . . . . . . . . . . Parts Recycled . | . . . . . . . . . . . . . . . . . Recycled Matter . | . . . . . . . . . . . . . . . . . Retrieved Matter . | . . . . . . . . . . . . . . . . . Retrieved Components . | . . . . . . . . . . . . . . . . . Parts Scanalyzed . | . . . . . . . . . . . . . . . . . Part Schematics Acquired . | . . . . . . . . . . . . . . . . . Parts Damaged . | . . . . . . . . . . . . . . . . . Bothacking | -11 -10 -10 -10 -9 -8 -8 -8 -8 -7 -7 -7 -7 -6 -6 -6 -6 ------------ Run | Scr Mat Min Exi Min Mat Gar Mat Gar Fac Gar Fac Gar Fac Was Fac DSF Used RIF Installer 4 | . . . . . . 1 . 1 . 1 . 1 . . . . Coupler Efficiency 1 | . . . . . . . . . . 1 . . . . . . Patrol Navigation 1 | . . . . . . . . . . . . 1 . . . . Program Shield 1 | . . . . . . . . 1 . . . . . . . . Robots Hacked 14 | . . . . . . . . . . . . 6 8 . . . Non-combat 2 | . . . . . . . . . . . . . 2 . . . Combat 12 | . . . . . . . . . . . . 6 6 . . . Robot Hacks Applied 17 | . . . . . . . . . . . . 8 9 . . . parse_system 1 | . . . . . . . . . . . . . 1 . . . scatter_targeting 1 | . . . . . . . . . . . . 1 . . . . overload_power 3 | . . . . . . . . . . . . 2 1 . . . reboot_system 1 | . . . . . . . . . . . . . 1 . . . go_dormant 2 | . . . . . . . . . . . . . 2 . . . overwrite_iff 1 | . . . . . . . . . . . . . 1 . . . streamctrl_high 4 | . . . . . . . . . . . . 4 . . . . formatsys_low 1 | . . . . . . . . . . . . . 1 . . . formatsys_high 3 | . . . . . . . . . . . . 1 2 . . . Relay Couplers Released 14 | . . . . . . 5 . 4 . . . 5 . . . . Machine Destruction 14 | . . . . . . 5 . 4 . . . 5 . . . . Attached 6 | . . . . . . . . . 1 . . 1 4 . . . Fabnet Peak Effective % . | . . . . . . . . . . . . . . . . . Robots Rewired . | . . . . . . . . . . . . . . . . . Allies Hacked 1 | . . . . . . . . . . . . . 1 . . . Hacks Repelled . | . . . . . . . . . . . . . . . . . Allies | -11 -10 -10 -10 -9 -8 -8 -8 -8 -7 -7 -7 -7 -6 -6 -6 -6 -------- Run | Scr Mat Min Exi Min Mat Gar Mat Gar Fac Gar Fac Gar Fac Was Fac DSF Total Allies 10 | . . . . . . . . . . . 2 4 4 . . . Largest Group 2 | . . . . . . . . . . . 1 2 1 . . . Highest-Rated Group 44 | . . . . . . . . . . . 26 44 41 . . . Highest-Rated Ally 41 | . . . . . . . . . . . 26 32 41 . . . Total Orders 1 | . . . . . . . . . . . . . 1 . . . AID 1 | . . . . . . . . . . . . . 1 . . . Ally Attacks 35 | . . . . . . . . . . . . 30 5 . . . Total Damage 549 | . . . . . . . . . . . . 461 88 . . . Kills 5 | . . . . . . . . . . . . 5 . . . . Allies Corrupted 1 | . . . . . . . . . . . 1 . . . . . Allies Melted . | . . . . . . . . . . . . . . . . . Intel | -11 -10 -10 -10 -9 -8 -8 -8 -8 -7 -7 -7 -7 -6 -6 -6 -6 ------- Run | Scr Mat Min Exi Min Mat Gar Mat Gar Fac Gar Fac Gar Fac Was Fac DSF Robot Analysis Total 1 | . 1 . . . . . . . . . . . . . . . Derelict Logs Recovered 3 | . . 2 . 1 . . . . . . . . . . . . Drone Launches . | . . . . . . . . . . . . . . . . . Drone Recoveries . | . . . . . . . . . . . . . . . . . Exploration | -11 -10 -10 -10 -9 -8 -8 -8 -8 -7 -7 -7 -7 -6 -6 -6 -6 ------------- Run | Scr Mat Min Exi Min Mat Gar Mat Gar Fac Gar Fac Gar Fac Was Fac DSF Turns Passed 10021 | . 149 244 320 224 840 370 826 667 892 476 1150 470 2877 142 40 334 Spaces Moved 4933 | 1 97 166 235 166 454 185 343 252 415 193 759 215 1106 150 43 153 Core 146 | . . . . . . . . . 6 2 . . . 80 12 46 Treads 427 | . . . . . . . 39 50 . . . . 338 . . . Legs 239 | 1 9 . . . . . . . . 32 . . 119 . . 78 Wheels 4121 | . 88 166 235 166 454 185 304 202 409 159 759 215 649 70 31 29 Hover . | . . . . . . . . . . . . . . . . . Flight . | . . . . . . . . . . . . . . . . . Fastest Speed 50 | 120 120 135 135 135 135 135 130 145 115 120 120 135 123 50 50 50 Average Speed 163 | 120 135 135 135 135 144 149 165 213 168 175 125 160 221 81 78 123 Slowest Speed 1550 | 120 140 135 135 135 195 150 330 330 1550 1500 150 225 400 135 90 250 Overloaded Moves . | . . . . . . . . . . . . . . . . . Propulsion Burnouts . | . . . . . . . . . . . . . . . . . Robots Hopped . | . . . . . . . . . . . . . . . . . Cave-ins Triggered . | . . . . . . . . . . . . . . . . . Exploration Rate (%) 36 | 3 20 47 62 45 48 43 42 38 11 34 19 39 33 79 1 53 Regions Visited 16 Branch Regions 3 Pre-discovered Areas 3 | . . 1 1 1 . . . . . . . . . . . . Known Exits Taken 6 | . 1 . . . 1 . 1 . 1 . 1 . . . 1 . Unknown Exits Taken 4 | 1 . 1 1 1 . . . . . . . . . . . . Scrap Searched 2 | . . 2 . . . . . . . . . . . . . . Spaces Dug 28 | . . . . . . . 1 . . . 9 . 15 . . 3 Terrain Destroyed 475 | . . 28 . . 53 24 22 82 41 48 44 . 126 . . 7 Melee 26 | . . . . . . . 1 . . . 9 . 13 . . 3 Projectile 45 | . . . . . . . . . 9 7 5 . 24 . . . AOE 404 | . . 28 . . 53 24 21 82 32 41 30 . 89 . . 4 Terrain Rammed . | . . . . . . . . . . . . . . . . . Walls Destroyed . | . . . . . . . . . . . . . . . . . Machines Disabled . | . . . . . . . . . . . . . . . . . Actions | -11 -10 -10 -10 -9 -8 -8 -8 -8 -7 -7 -7 -7 -6 -6 -6 -6 --------- Run | Scr Mat Min Exi Min Mat Gar Mat Gar Fac Gar Fac Gar Fac Was Fac DSF Total 6276 | . 116 175 239 166 547 247 510 335 545 287 906 321 1414 171 48 249 Wait 382 | . . . . . 1 18 66 8 44 8 62 30 93 13 . 39 Move 4921 | . 96 165 234 165 454 184 343 251 414 192 759 214 1106 149 42 153 Hop . | . . . . . . . . . . . . . . . . . Pick Up 88 | . 6 . 3 1 18 5 6 6 8 9 4 4 11 1 1 5 Fast Attach 94 | . 2 . . . 5 1 3 7 14 10 9 1 29 2 1 10 Attach 53 | . . . . . 5 1 2 9 6 5 3 2 16 . 4 . Detach 33 | . 1 . . . 2 . . 5 4 3 3 . 13 2 . . Swap 70 | . 4 2 . . 10 3 9 3 1 4 6 2 24 . . 2 Drop 82 | . 7 . 2 . 2 5 3 2 10 10 9 2 20 4 . 6 Fire 388 | . . 8 . . 49 22 77 24 25 19 31 32 74 . . 27 Melee 97 | . . . . . . . 1 10 19 19 12 1 28 . . 7 Ram 1 | . . . . . 1 . . . . . . . . . . . Kick . | . . . . . . . . . . . . . . . . . Crush . | . . . . . . . . . . . . . . . . . Escape Stasis 67 | . . . . . . 8 . 10 . 8 8 33 . . . . Rewire . | . . . . . . . . . . . . . . . . . Trap . | . . . . . . . . . . . . . . . . . Miscellaneous . | . . . . . . . . . . . . . . . . . Route ------- -11/Scrapyard -10/Materials (discovered 2 exits: *Min x2) -10/Mines -10/Exiles (discovered 2 exits: [*Min x2]) -9/Mines -8/Materials -8/Garrison -8/Materials (discovered 3 exits: *Fac x2 / Gar) -8/Garrison -7/Factory -7/Garrison -7/Factory -7/Garrison -6/Factory (discovered 3 exits: [*Fac] / Low x2) -6/Waste -6/Factory -6/DSF History --------- Turn | Location | Event 1 | -11/Scrapyard | Discovered new exit (range 0) 1 | -11/Scrapyard | Entered Materials 121 | -10/Materials | Identified exit to Mines 150 | -10/Materials | Entered Mines 164 | -10/Mines | Learned Materials terminal intel 316 | -10/Mines | Build established: Mutant 389 | -10/Mines | Deemed a non-threat by the Exiles lab entrance 389 | -10/Mines | Discovered new exit (range 5) 394 | -10/Mines | Entered Exiles 412 | -10/Exiles | Discovered new exit (range 15) 428 | -10/Exiles | Met 8R-AWN 450 | -10/Exiles | Met EX-HEX 494 | -10/Exiles | Met EX-BIN 511 | -10/Exiles | Aligned with FarCom system 512 | -10/Exiles | Given EX-Vault access code 548 | -10/Exiles | Opened EX-Vault 562 | -10/Exiles | Found Gui. Plasma Cannon 568 | -10/Exiles | Found AWS/Gauss 572 | -10/Exiles | Found Modified TNC 599 | -10/Exiles | Warned to stay clear of 0b10 Research branches 636 | -10/Exiles | Met EX-DEC 646 | -10/Exiles | Learned location of Zion (-7) 704 | -10/Exiles | Discovered new exit (range 10) 714 | -10/Exiles | Left Exiles lab with AWS/Gauss 714 | -10/Exiles | Entered Mines 743 | -9/Mines | Met a Derelict bent on vengeance 748 | -9/Mines | Found a damaged Exp. Sensor Array with a note attached 754 | -9/Mines | Found Prototype Device 922 | -9/Mines | Discovered new exit (range 11) 938 | -9/Mines | Entered Materials 938 | -8/Materials | Evolved 4 slots: Utility x4 939 | -8/Materials | Loaded intel: 12 terminal locations 953 | -8/Materials | Identified Exp. Sensor Array 1778 | -8/Materials | Identified exit to Garrison 1778 | -8/Materials | Entered Garrison 1830 | -8/Garrison | Triggered checkpoint 1923 | -8/Garrison | Garrison Relay disabled 2013 | -8/Garrison | Triggered checkpoint 2060 | -8/Garrison | Destroyed 8 combat bots 2100 | -8/Garrison | Discovered new exit (range 16) 2142 | -8/Garrison | Installed Relay Interface Framework 2148 | -8/Garrison | Entered Materials 2334 | -8/Materials | Discovered new exit (range 11) 2617 | -8/Materials | Discovered new exit (range 16) 2729 | -8/Materials | Garrison activated, responded to threat 2949 | -8/Materials | Core integrity fell below 50% 2974 | -8/Materials | Identified exit to Garrison 2974 | -8/Materials | Entered Garrison 2982 | -8/Garrison | Expanded RIF knowledge: Program Shield 3128 | -8/Garrison | Triggered checkpoint 3188 | -8/Garrison | Triggered checkpoint 3277 | -8/Garrison | Core integrity fell below 20% 3322 | -8/Garrison | Garrison Relay disabled 3444 | -8/Garrison | Triggered checkpoint 3614 | -8/Garrison | Discovered new exit (range 12) 3641 | -8/Garrison | Entered Factory 3641 | -7/Factory | Evolved 2 slots: Propulsion x1, Utility x1 3912 | -7/Factory | Lost 4 parts (1p1n1u1w) 4163 | -7/Factory | Build established: Bothacker-Mutant 4528 | -7/Factory | Identified exit to Garrison 4533 | -7/Factory | Entered Garrison 4619 | -7/Garrison | Triggered checkpoint 4619 | -7/Garrison | Triggered checkpoint 4653 | -7/Garrison | Core integrity fell below 50% 4674 | -7/Garrison | Triggered checkpoint 4674 | -7/Garrison | Lost 6 parts (2n2u2w) 4706 | -7/Garrison | Destroyed 13 combat bots 4742 | -7/Garrison | Triggered checkpoint 4976 | -7/Garrison | Discovered new exit (range 14) 5004 | -7/Garrison | Expanded RIF knowledge: Coupler Efficiency 5009 | -7/Garrison | Entered Factory 6014 | -7/Factory | Core integrity fell below 20% 6063 | -7/Factory | Lost 3 parts (1n1u1w) 6159 | -7/Factory | Identified exit to Garrison 6159 | -7/Factory | Entered Garrison 6194 | -7/Garrison | Triggered checkpoint 6226 | -7/Garrison | Garrison Relay disabled 6356 | -7/Garrison | Triggered checkpoint 6440 | -7/Garrison | Triggered checkpoint 6536 | -7/Garrison | Discovered new exit (range 14) 6620 | -7/Garrison | Expanded RIF knowledge: Patrol Navigation 6629 | -7/Garrison | Entered Factory 6629 | -6/Factory | Evolved 2 slots: Utility x2 6786 | -6/Factory | Fabricated Hvy. Gauss Cannon (x2) 6909 | -6/Factory | Build established: Botlord-Mutant 7143 | -6/Factory | Identified exit to Lower Caves 7748 | -6/Factory | Build established: Bothacker-Mutant 8256 | -6/Factory | Lost 6 parts (1p2n3u) 8410 | -6/Factory | Discovered new exit (range 9) 9079 | -6/Factory | First assault squad dispatched 9289 | -6/Factory | Core integrity fell below 50% 9316 | -6/Factory | Lost 8 parts (1p3n3u1w) 9506 | -6/Factory | Sucked down chute 9506 | -6/Factory | Entered Waste 9518 | -6/Waste | Spotted C-40 Crusher 9521 | -6/Waste | EMP discharged 9551 | -6/Waste | Crushed by Compactor (1 part destroyed) 9554 | -6/Waste | Spotted C-40 Crusher 9566 | -6/Waste | Spotted C-40 Crusher 9570 | -6/Waste | Spotted C-40 Crusher 9571 | -6/Waste | Spotted C-40 Crusher 9573 | -6/Waste | Crushed by Compactor (1 part destroyed) 9604 | -6/Waste | Lost 4 parts (1n3u) 9621 | -6/Waste | EMP discharged 9621 | -6/Waste | System corruption reached 10% 9626 | -6/Waste | Spotted C-40 Crusher 9644 | -6/Waste | Discovered new exit (range 10) 9648 | -6/Waste | Entered Factory 9686 | -6/Factory | Identified exit to DSF 9688 | -6/Factory | Entered DSF 9715 | -6/DSF | Additional patrols routed to DSF 9753 | -6/DSF | Core integrity fell below 20% 9837 | -6/DSF | Lost 8 parts (1p1n3u3w) 9925 | -6/DSF | Build established: Hacker-Mutant 10022 | -6/DSF | Destroyed by S-27 Virus with Autogun Last Messages --------------- 09904_ Acquired Hvy. Plasma Cannon. 09918_ System corrupted: Energy discharge (-23). 09928_ Acquired Proton Cannon. 09929_ Dropped Hvy. Plasma Cannon. 09932_ Acquired Proton Cannon. 09936_ System corrupted: Matter fused (-5). 09952_ System corrupted: Heat flow error (+234). 09993_ System corrupted: Substantial component data lost. 09993_ Acquired Energy Well. 10011_ C-30 ARC bursts open, deploying its payload. 10011_ S-27 Virus unfolds itself. 10015_ Imp. Carbon-fiber Leg destroyed. 10017_ System corrupted: Matter fused (-5). 10017_ S-27 Virus destroyed. 10019_ C-30 ARC bursts open, deploying its payload. 10019_ G-67 Veteran unfolds itself. 10020_ S-27 Virus suffers critical hit (Smash). 10020_ Destroyed Lgt. Nuclear Core. 10020_ S-27 Virus system corrupted by crushing effect. 10020_ S-27 Virus knocked back. Map ----- +----------------------------------------------------+ | | | | | | | | | ???????????????????????????????????????? | | ???????????????????????????????????????? | | ???????????????????????????????????????? | | ???????????????????????????????????????? | | ???????????????????????????????????????? | | ???????????????????????????????????????? | | ???????????????????????????????????????? | | ????????""""???????????????????????????? | | ????????""""???????????????????????????? | | ???????"" ???????????????????????????? | | ????????" ?????C?????????????????????? | | ????????" ???????????????????????????? | | ????????# #???????????????????????????? | | ???????## #??????????? ?????????????? | | ???????#] [??????????! ?????????????? | | ???????#] [?##???????! ????????????? | | ???????## ##"#??????## #????????????? | | ???????# #????????] !????????????? | | ???????# #????????] !????????????? | | ???????# #?###????] !????????????? | | ??????### #;###%##?#?# #???###??????? | | ??????# ## !@#!!!### ##?[[[#??????? | | ??????# ##ssg#g!!## ##[[[#??????? | | ??????#[[ s g ???????? | | ??????#[[ g % ?????????? | | ??????#[[ % ??????????? | | ??????# ##!!!#[[[## %!#???????????? | | ??????# ##!!!#[[[#?#![%##???????????? | | ??????### ############! ###??????????? | | ???????# ]]#??????#!! ![==#??????????? | | ???????# #??????#!! ==#??????????? | | ???????# ]]]#??????#!! ==#??????????? | | ???????## ###??????##" "##??????????? | | ???????#[ #??????#** !!#??????????? | | ???????#[ #??????#** !!#??????????? | | ???????## ##########** !!#??????????? | | ??????### ### #[[[#"# #"#??????????? | | ????###"" ## #[ #"" ###??????????? | | ???#""""" #??????????? | | ???#"##"" [ ] #??????????? | | ??????#"""""## # " [ ]]//#??????????? | | ??????#"""""######### [] ]//#??????????? | | ??????####"##???????#########??????????? | | ?????????#"#???????????????????????????? | | ?????????""#???????????????????????????? | | ???????????????????????????????????????? | +----------------------------------------------------+ Best States ------------- Heat Dissipation 56 Energy Generation 18 Energy Capacity 900 Matter Stores 300 Matter Capacity 300 Sight Range 18 Terrain Scan Density 110 Corruption Block 16 Armor Coverage 300 Core Shielding 30 Power Shielding 33 Weapon Cycling 30 Evasion (%) 55 Targeting Accuracy 8 Launcher Accuracy 20 Target Analysis 5 Recoil Reduction 3 Offensive Hacking 30 Defensive Hacking 10 Relay Coupler Types 4 Relay Coupler Value 77 Authchip Count 9 Item Schematics ----------------- None Robot Schematics ------------------ None Fabricated ------------ Hvy. Gauss Cannon | x2 | -6/Factory | Preloaded Alien Tech Used ----------------- None Achievements -------------- None Challenges ------------ None Game ------ Seed AntigravThrowingEdition Manual? 0 Play Time 01:30:33 Cumulative 1019.6 hours Start 2022.03.27 @ 11:30:14 End 2022.04.01 @ 16:44:19 Sessions 2 Manual Loads 0 Difficulty Rogue Special Mode None Game No. 307 Rogue 307 Adventurer 0 Explorer 0 Win Type - Total 71 Types 44/4/8/6/4/1/2/1/1 Lore% 92 Gallery% 94 Achievement% 98 Wizard Run 0 Options --------- ASCII 0 Keyboard 1 Movement Arrows Keybinds 0 Fullscreen 1 Font 24/Smallcaps Map View 76x56 Tactical HUD 1 Map Filters NONE Filters NONE Steam 1 RUN: 3529f3e2-47b4-4274-b488-db42286959f3